[Event "Championnat d'Europe de Blitz"]
[Date "2024.12.09"]
[White "Mueller, Magnus"]
[Black "Schneider, Ilja"]
[WhiteElo "2166"]
[BlackElo "2414"]
[Round "13.32"]
[Result "1-0"]
[TimeControl "180+2"]

1. d4 {[%emt 00:00:01] [%clk 00:03:03]} d5 {[%emt 00:00:04] [%clk 00:03:02]} 2.
Nc3 {[%clk 00:03:04]} Nf6 {[%emt 00:00:01] [%clk 00:03:02]} 3. Bf4 {[%clk
00:03:04]} g6 {[%emt 00:00:03] [%clk 00:03:02]} 4. e3 {[%emt 00:00:02] [%clk
00:03:04]} Bg7 {[%clk 00:03:03]} 5. h4 {[%emt 00:00:05] [%clk 00:03:01]} h5
{[%clk 00:03:04]} 6. Nf3 {[%emt 00:00:02] [%clk 00:03:00]} O-O {[%emt 00:00:04]
[%clk 00:03:03]} 7. Ne5 {[%emt 00:00:02] [%clk 00:03:00]} c5 {[%clk 00:03:04]}
8. Qd2 {[%emt 00:00:04] [%clk 00:02:58]} Nc6 {[%emt 00:00:06] [%clk 00:03:00]}
9. O-O-O {[%emt 00:00:10] [%clk 00:02:50]} Bf5 {[%emt 00:00:48] [%clk 00:02:15]}
10. f3 {[%emt 00:00:07] [%clk 00:02:44]} cxd4 {[%emt 00:00:13] [%clk 00:02:05]}
11. exd4 {[%emt 00:00:01] [%clk 00:02:45]} Nd7 {[%emt 00:00:05] [%clk 00:02:02]}
12. g4 {[%emt 00:00:23] [%clk 00:02:23]} Ndxe5 {[%emt 00:00:07] [%clk 00:01:58]}
13. gxf5 {[%emt 00:00:01] [%clk 00:02:22]} Nxf3 {[%emt 00:00:13] [%clk
00:01:48]} 14. Qg2 {[%emt 00:00:11] [%clk 00:02:13]} e5 {[%emt 00:00:39] [%clk
00:01:11]} 15. Qxf3 {[%emt 00:00:14] [%clk 00:02:01]} exf4 {[%emt 00:00:01]
[%clk 00:01:12]} 16. fxg6 {[%emt 00:00:02] [%clk 00:02:01]} fxg6 {[%emt
00:00:02] [%clk 00:01:12]} 17. Nxd5 {[%emt 00:00:07] [%clk 00:01:56]} Nxd4
{[%emt 00:00:07] [%clk 00:01:07]} 18. Rxd4 {[%emt 00:00:03] [%clk 00:01:55]}
Bxd4 {[%emt 00:00:02]} 19. Bc4 {[%clk 00:01:56]} Kg7 {[%emt 00:00:27] [%clk
00:00:43]} 20. Qe4 {[%emt 00:00:04] [%clk 00:01:53]} Be3+ {[%emt 00:00:03] [%clk
00:00:42]} 21. Nxe3 {[%emt 00:01:17] [%clk 00:01:15]} fxe3 {[%clk 00:01:42]} 22.
Rg1 {[%emt 00:00:02] [%clk 00:01:15]} Qd6 {[%emt 00:00:28] [%clk 00:01:15]} 23.
Bd3 {[%emt 00:00:01] [%clk 00:01:16]} Rae8 {[%emt 00:00:16] [%clk 00:01:01]} 24.
Rxg6+ {[%emt 00:00:02] [%clk 00:01:16]} Kh8 {[%emt 00:00:01] [%clk 00:01:02]}
25. Rg8+ {[%emt 00:00:36] [%clk 00:00:42]} 1-0

[Site "Europe Echecs"]

[Event "Championnat d'Europe de Blitz"]
[Date "2024.12.09"]
[White "Kiratzopoulos, Efthimios"]
[Black "Zajic, Milan"]
[WhiteElo "2193"]
[BlackElo "2392"]
[Round "13.33"]
[Result "1-0"]
[TimeControl "180+2"]

1. d4 {[%emt 00:00:01] [%clk 00:03:02]} Nf6 {[%emt 00:00:02] [%clk 00:03:03]} 2.
Nf3 {[%clk 00:03:03]} e6 {[%clk 00:03:04]} 3. Bg5 {[%emt 00:00:01] [%clk
00:03:04]} c5 {[%emt 00:00:02] [%clk 00:03:04]} 4. c3 {[%emt 00:00:01] [%clk
00:03:05]} h6 {[%emt 00:00:02] [%clk 00:03:04]} 5. Bh4 {[%clk 00:03:06]} d5
{[%emt 00:00:01] [%clk 00:03:05]} 6. e3 {[%emt 00:00:01] [%clk 00:03:07]} Be7
{[%emt 00:00:01] [%clk 00:03:06]} 7. Nbd2 {[%emt 00:00:01] [%clk 00:03:08]} Nbd7
{[%emt 00:00:05] [%clk 00:03:03]} 8. Bd3 {[%emt 00:00:01] [%clk 00:03:09]} b6
{[%emt 00:00:05] [%clk 00:03:00]} 9. O-O {[%emt 00:00:02] [%clk 00:03:08]} Bb7
{[%emt 00:00:01] [%clk 00:03:01]} 10. Ne5 {[%emt 00:00:02] [%clk 00:03:08]} Nxe5
{[%emt 00:00:14] [%clk 00:02:49]} 11. dxe5 {[%emt 00:00:01] [%clk 00:03:09]} Nd7
{[%emt 00:00:05] [%clk 00:02:47]} 12. Bxe7 {[%emt 00:00:03] [%clk 00:03:08]}
Qxe7 {[%emt 00:00:02] [%clk 00:02:47]} 13. f4 {[%emt 00:00:02] [%clk 00:03:07]}
O-O-O {[%emt 00:00:22] [%clk 00:02:27]} 14. Qe2 {[%emt 00:00:23] [%clk
00:02:47]} f6 {[%emt 00:00:28] [%clk 00:02:01]} 15. exf6 {[%emt 00:00:20] [%clk
00:02:28]} gxf6 {[%clk 00:02:02]} 16. e4 {[%emt 00:00:11] [%clk 00:02:20]} c4
{[%emt 00:00:12] [%clk 00:01:52]} 17. Bc2 {[%clk 00:02:21]} Qc5+ {[%emt
00:00:14] [%clk 00:01:39]} 18. Kh1 {[%emt 00:00:02] [%clk 00:02:21]} Kb8 {[%emt
00:00:06] [%clk 00:01:35]} 19. Nf3 {[%emt 00:00:10] [%clk 00:02:13]} Rhg8 {[%emt
00:00:07] [%clk 00:01:30]} 20. Rad1 {[%emt 00:00:05] [%clk 00:02:10]} Rde8
{[%emt 00:00:17] [%clk 00:01:16]} 21. exd5 {[%emt 00:00:16] [%clk 00:01:56]}
exd5 {[%emt 00:00:02] [%clk 00:01:16]} 22. Qd2 {[%clk 00:01:57]} Qc7 {[%emt
00:00:04] [%clk 00:01:14]} 23. Nd4 {[%emt 00:00:04] [%clk 00:01:54]} Nc5 {[%emt
00:00:01] [%clk 00:01:15]} 24. Rde1 {[%emt 00:00:07] [%clk 00:01:49]} Ne4 {[%emt
00:00:22] [%clk 00:00:55]} 25. Bxe4 {[%emt 00:00:16] [%clk 00:01:35]} Rxe4
{[%emt 00:00:02] [%clk 00:00:56]} 26. Rxe4 {[%emt 00:00:03] [%clk 00:01:34]}
dxe4 {[%emt 00:00:01] [%clk 00:00:57]} 27. Qe3 {[%clk 00:01:35]} Qg7 {[%emt
00:00:07] [%clk 00:00:52]} 28. g3 {[%emt 00:00:03] [%clk 00:01:34]} h5 {[%emt
00:00:03] [%clk 00:00:52]} 29. Kg2 {[%emt 00:00:07] [%clk 00:01:29]} h4 {[%emt
00:00:01] [%clk 00:00:53]} 30. f5 {[%emt 00:00:13] [%clk 00:01:18]} hxg3 {[%emt
00:00:26] [%clk 00:00:29]} 31. hxg3 {[%emt 00:00:01] [%clk 00:01:19]} Rh8 {[%emt
00:00:04] [%clk 00:00:27]} 32. Rh1 {[%emt 00:00:04] [%clk 00:01:17]} Rxh1 {[%emt
00:00:13] [%clk 00:00:17]} 33. Kxh1 {[%clk 00:01:18]} Kc8 {[%emt 00:00:05] [%clk
00:00:15]} 34. Kg2 {[%clk 00:01:19]} Qg4 {[%emt 00:00:01] [%clk 00:00:16]} 35.
Qh6 {[%emt 00:00:06] [%clk 00:01:14]} e3+ {[%emt 00:00:02] [%clk 00:00:17]} 36.
Kh2 {[%emt 00:00:05] [%clk 00:01:11]} Qe4 {[%emt 00:00:10] [%clk 00:00:09]} 37.
Qf8+ {[%emt 00:00:04] [%clk 00:01:08]} Kd7 {[%emt 00:00:04] [%clk 00:00:07]} 38.
Qf7+ {[%emt 00:00:05] [%clk 00:01:05]} Qe7 {[%emt 00:00:03] [%clk 00:00:06]} 39.
Qxe7+ {[%emt 00:00:21] [%clk 00:00:46]} Kxe7 {[%clk 00:00:07]} 40. Kg1 {[%clk
00:00:47]} Kd6 {[%emt 00:00:05] [%clk 00:00:05]} 41. Kf1 {[%clk 00:00:48]} Ke5
{[%emt 00:00:03] [%clk 00:00:04]} 42. Ke2 {[%clk 00:00:49]} Ke4 {[%clk
00:00:05]} 43. Nb5 {[%emt 00:00:06] [%clk 00:00:45]} Bc6 {[%emt 00:00:03] [%clk
00:00:05]} 44. Nd6+ {[%emt 00:00:01] [%clk 00:00:46]} Kd5 {[%emt 00:00:02] [%clk
00:00:05]} 45. Nf7 {[%emt 00:00:05] [%clk 00:00:42]} Ke4 {[%emt 00:00:02] [%clk
00:00:07]} 46. Nd6+ {[%emt 00:00:03] [%clk 00:00:41]} Kd5 {[%clk 00:00:08]} 47.
Nc8 {[%emt 00:00:06] [%clk 00:00:37]} Bd7 {[%emt 00:00:03] [%clk 00:00:07]} 48.
Nxa7 {[%emt 00:00:06] [%clk 00:00:33]} Ke4 {[%emt 00:00:03] [%clk 00:00:06]} 49.
g4 {[%emt 00:00:04] [%clk 00:00:31]} Kf4 {[%emt 00:00:03] [%clk 00:00:04]} 50.
a4 {[%emt 00:00:04] [%clk 00:00:30]} Bxa4 {[%emt 00:00:01] [%clk 00:00:05]} 51.
Nc8 {[%clk 00:00:31]} b5 {[%emt 00:00:02] [%clk 00:00:05]} 52. Ne7 {[%emt
00:00:02] [%clk 00:00:30]} Bc2 {[%emt 00:00:04] [%clk 00:00:04]} 53. Nd5+ {[%emt
00:00:02] [%clk 00:00:30]} Kxg4 {[%emt 00:00:01] [%clk 00:00:05]} 54. Nxe3+
{[%clk 00:00:31]} Kf4 {[%emt 00:00:01] [%clk 00:00:07]} 55. Nxc2 {[%clk
00:00:31]} Kxf5 {[%clk 00:00:08]} 56. Nd4+ {[%clk 00:00:33]} 1-0

[Site "Europe Echecs"]

[Event "Championnat d'Europe de Blitz"]
[Date "2024.12.09"]
[White "Cvitan, Ognjen"]
[Black "Alienkin, Aleksander"]
[WhiteElo "2413"]
[BlackElo "2337"]
[Round "13.34"]
[Result "1/2-1/2"]
[TimeControl "180+2"]

1. d4 {[%emt 00:00:01] [%clk 00:03:02]} e6 {[%emt 00:00:03] [%clk 00:03:02]} 2.
e4 {[%clk 00:03:02]} d5 {[%emt 00:00:01] [%clk 00:03:03]} 3. exd5 {[%clk
00:03:03]} exd5 {[%emt 00:00:01] [%clk 00:03:04]} 4. Nf3 {[%emt 00:00:02] [%clk
00:03:03]} Bd6 {[%emt 00:00:05] [%clk 00:03:01]} 5. c4 {[%emt 00:00:01] [%clk
00:03:04]} Nf6 {[%emt 00:00:18] [%clk 00:02:45]} 6. c5 {[%emt 00:00:19] [%clk
00:02:48]} Be7 {[%emt 00:00:01] [%clk 00:02:45]} 7. Bd3 {[%emt 00:00:03] [%clk
00:02:47]} O-O {[%emt 00:00:09] [%clk 00:02:38]} 8. h3 {[%emt 00:00:03] [%clk
00:02:45]} b6 {[%emt 00:00:02] [%clk 00:02:39]} 9. Be3 {[%emt 00:00:09] [%clk
00:02:37]} bxc5 {[%emt 00:00:14] [%clk 00:02:27]} 10. dxc5 {[%emt 00:00:01]
[%clk 00:02:38]} Na6 {[%clk 00:02:28]} 11. Qc1 {[%emt 00:00:17] [%clk 00:02:23]}
Ne4 {[%emt 00:00:07] [%clk 00:02:24]} 12. c6 {[%emt 00:00:08] [%clk 00:02:17]}
Nb4 {[%emt 00:00:02] [%clk 00:02:23]} 13. Be2 {[%emt 00:00:05] [%clk 00:02:14]}
Qd6 {[%emt 00:00:05] [%clk 00:02:21]} 14. Bf4 {[%emt 00:00:18] [%clk 00:01:59]}
Qxc6 {[%emt 00:00:04] [%clk 00:02:18]} 15. Qxc6 {[%emt 00:00:01] [%clk
00:02:00]} Nxc6 {[%emt 00:00:02] [%clk 00:02:19]} 16. Bxc7 {[%clk 00:02:01]}
Bb4+ {[%emt 00:00:09] [%clk 00:02:12]} 17. Kf1 {[%emt 00:00:04] [%clk 00:01:59]}
Re8 {[%emt 00:00:02] [%clk 00:02:10]} 18. Bf4 {[%emt 00:00:20] [%clk 00:01:42]}
Bf5 {[%emt 00:00:06] [%clk 00:02:05]} 19. Bb5 {[%emt 00:00:19] [%clk 00:01:26]}
Rec8 {[%emt 00:00:03] [%clk 00:02:03]} 20. Ba6 {[%emt 00:00:18]} Re8 {[%emt
00:00:02]} 21. Bb7 1/2-1/2

[Site "Europe Echecs"]

[Event "Championnat d'Europe de Blitz"]
[Date "2024.12.09"]
[White "Vuckovic, Zarko"]
[Black "Veljanoski, Andrej"]
[WhiteElo "2334"]
[BlackElo "2304"]
[Round "13.35"]
[Result "1-0"]
[TimeControl "180+2"]

1. e4 {[%emt 00:00:01] [%clk 00:03:03]} b6 {[%clk 00:03:04]} 2. d4 {[%emt
00:00:03] [%clk 00:03:04]} Bb7 {[%clk 00:03:05]} 3. Bd3 {[%clk 00:03:05]} g6
{[%clk 00:03:06]} 4. Nf3 {[%emt 00:00:01] [%clk 00:03:06]} Bg7 {[%emt 00:00:02]
[%clk 00:03:06]} 5. O-O {[%emt 00:00:01] [%clk 00:03:06]} d6 {[%emt 00:00:01]
[%clk 00:03:07]} 6. Re1 {[%clk 00:03:07]} e5 {[%emt 00:00:08] [%clk 00:03:02]}
7. Bg5 {[%emt 00:00:09] [%clk 00:03:01]} Ne7 {[%emt 00:00:20] [%clk 00:02:43]}
8. c4 {[%emt 00:00:08] [%clk 00:02:54]} h6 {[%emt 00:00:03] [%clk 00:02:42]} 9.
Be3 {[%emt 00:00:01] [%clk 00:02:55]} O-O {[%emt 00:00:11] [%clk 00:02:33]} 10.
Nc3 {[%emt 00:00:06] [%clk 00:02:51]} Nd7 {[%emt 00:00:16] [%clk 00:02:19]} 11.
Qc2 {[%emt 00:00:41] [%clk 00:02:13]} f5 {[%emt 00:00:25] [%clk 00:01:56]} 12.
dxe5 {[%emt 00:00:02] [%clk 00:02:13]} f4 {[%emt 00:00:23] [%clk 00:01:35]} 13.
Bd2 {[%clk 00:02:14]} Nxe5 {[%emt 00:00:04] [%clk 00:01:34]} 14. Be2 {[%emt
00:00:07] [%clk 00:02:08]} N7c6 {[%emt 00:00:09] [%clk 00:01:27]} 15. Nd5 {[%emt
00:00:08] [%clk 00:02:02]} g5 {[%emt 00:00:16] [%clk 00:01:13]} 16. Bc3 {[%emt
00:00:09] [%clk 00:01:54]} Nxf3+ {[%emt 00:00:17] [%clk 00:00:58]} 17. Bxf3
{[%emt 00:00:01] [%clk 00:01:55]} Bxc3 {[%emt 00:00:02] [%clk 00:00:59]} 18.
Qxc3 {[%emt 00:00:02] [%clk 00:01:55]} Ne5 {[%emt 00:00:01] [%clk 00:01:00]} 19.
Bd1 {[%emt 00:00:14] [%clk 00:01:42]} g4 {[%emt 00:00:28] [%clk 00:00:34]} 20.
Qd2 {[%emt 00:00:33] [%clk 00:01:11]} Qg5 {[%emt 00:00:20] [%clk 00:00:16]} 21.
g3 {[%emt 00:00:09] [%clk 00:01:05]} Bxd5 {[%emt 00:00:04] [%clk 00:00:14]} 22.
cxd5 {[%emt 00:00:22] [%clk 00:00:44]} Rf7 {[%emt 00:00:01] [%clk 00:00:15]} 23.
Kh1 {[%emt 00:00:11] [%clk 00:00:35]} Raf8 {[%clk 00:00:17]} 24. Rg1 {[%clk
00:00:37]} Qh5 {[%emt 00:00:05] [%clk 00:00:14]} 25. gxf4 {[%emt 00:00:06] [%clk
00:00:33]} Rxf4 {[%emt 00:00:01] [%clk 00:00:15]} 26. Rg2 {[%clk 00:00:34]} Qh4
{[%emt 00:00:03] [%clk 00:00:14]} 27. Be2 {[%emt 00:00:19] [%clk 00:00:17]} Rxf2
{[%emt 00:00:03] [%clk 00:00:13]} 28. Rag1 {[%clk 00:00:19]} Kh7 {[%emt
00:00:06] [%clk 00:00:09]} 29. Qe3 {[%emt 00:00:03] [%clk 00:00:17]} Rxg2 {[%emt
00:00:03] [%clk 00:00:08]} 30. Rxg2 {[%clk 00:00:18]} Qe1+ {[%emt 00:00:04]
[%clk 00:00:06]} 31. Qg1 {[%emt 00:00:04] [%clk 00:00:15]} Qxg1+ {[%emt
00:00:03] [%clk 00:00:05]} 32. Kxg1 {[%clk 00:00:16]} Kg6 {[%clk 00:00:07]} 33.
Bxg4 {[%emt 00:00:02] [%clk 00:00:16]} Nxg4 {[%emt 00:00:06] [%clk 00:00:04]}
34. Rxg4+ {[%clk 00:00:17]} Kh7 {[%emt 00:00:01] [%clk 00:00:05]} 35. Kg2 {[%emt
00:00:01] [%clk 00:00:17]} Rf6 {[%emt 00:00:02] [%clk 00:00:06]} 36. a4 {[%emt
00:00:04] [%clk 00:00:15]} h5 {[%clk 00:00:07]} 37. Rg5 {[%clk 00:00:15]} Kh6
{[%emt 00:00:02] [%clk 00:00:08]} 38. Rg8 {[%emt 00:00:03] [%clk 00:00:14]} Rg6+
{[%emt 00:00:04] [%clk 00:00:07]} 39. Rxg6+ {[%clk 00:00:15]} Kxg6 {[%clk
00:00:08]} 40. Kg3 {[%clk 00:00:16]} Kg5 {[%emt 00:00:02] [%clk 00:00:08]} 41.
h4+ {[%clk 00:00:17]} Kg6 {[%clk 00:00:10]} 42. Kf4 {[%emt 00:00:03] [%clk
00:00:16]} Kf6 {[%clk 00:00:11]} 43. b3 {[%emt 00:00:03] [%clk 00:00:14]} a5
{[%emt 00:00:02] [%clk 00:00:12]} 44. e5+ {[%emt 00:00:01] [%clk 00:00:14]}
dxe5+ {[%emt 00:00:05] [%clk 00:00:09]} 45. Ke4 {[%clk 00:00:16]} Kf7 {[%emt
00:00:03] [%clk 00:00:08]} 46. Kxe5 {[%clk 00:00:17]} Ke7 {[%clk 00:00:10]} 47.
Kf5 {[%emt 00:00:04] [%clk 00:00:15]} Kd6 {[%emt 00:00:02] [%clk 00:00:10]} 48.
Kg5 {[%clk 00:00:16]} Kxd5 {[%emt 00:00:01] [%clk 00:00:12]} 49. Kxh5 {[%clk
00:00:17]} c5 {[%emt 00:00:05] [%clk 00:00:09]} 50. Kg4 {[%emt 00:00:03] [%clk
00:00:15]} b5 {[%clk 00:00:11]} 51. h5 {[%emt 00:00:12] [%clk 00:00:05]} c4
{[%emt 00:00:03] [%clk 00:00:10]} 52. bxc4+ {[%clk 00:00:06]} Kxc4 {[%emt
00:00:02] [%clk 00:00:10]} 53. h6 {[%emt 00:00:04] [%clk 00:00:04]} b4 {[%emt
00:00:01] [%clk 00:00:10]} 54. h7 {[%clk 00:00:05]} Kb3 {[%emt 00:00:03] [%clk
00:00:10]} 55. h8=Q {[%clk 00:00:06]} Kxa4 {[%emt 00:00:01] [%clk 00:00:11]} 56.
Kf3 {[%clk 00:00:07]} Kb3 {[%emt 00:00:01] [%clk 00:00:12]} 57. Ke2 {[%emt
00:00:02] [%clk 00:00:07]} a4 {[%emt 00:00:01] [%clk 00:00:13]} 58. Kd1 {[%clk
00:00:08]} a3 {[%clk 00:00:15]} 59. Kc1 {[%clk 00:00:09]} Ka4 {[%emt 00:00:01]
[%clk 00:00:16]} 60. Qe8+ {[%emt 00:00:02] [%clk 00:00:09]} Kb3 {[%emt 00:00:02]
[%clk 00:00:17]} 61. Qe3+ {[%clk 00:00:10]} Ka4 {[%emt 00:00:01] [%clk
00:00:18]} 62. Kc2 {[%clk 00:00:11]} 1-0

[Site "Europe Echecs"]

[Event "Championnat d'Europe de Blitz"]
[Date "2024.12.09"]
[White "Nikolovski, Nikola"]
[Black "Zlatkov, Anton"]
[WhiteElo "2407"]
[BlackElo "2324"]
[Round "13.36"]
[Result "0-1"]
[TimeControl "180+2"]

1. f4 {[%clk 00:03:02]} d5 {[%emt 00:00:03] [%clk 00:03:02]} 2. e3 {[%emt
00:00:02] [%clk 00:03:02]} Nf6 {[%emt 00:00:03] [%clk 00:03:02]} 3. Nf3 {[%emt
00:00:01] [%clk 00:03:03]} Bf5 {[%emt 00:00:02] [%clk 00:03:02]} 4. b3 {[%emt
00:00:09] [%clk 00:02:55]} g6 {[%emt 00:00:02] [%clk 00:03:02]} 5. Bb2 {[%emt
00:00:01] [%clk 00:02:56]} Bg7 {[%clk 00:03:03]} 6. d3 {[%emt 00:00:28] [%clk
00:02:31]} O-O {[%emt 00:00:03] [%clk 00:03:02]} 7. Qe2 {[%emt 00:00:15] [%clk
00:02:18]} c5 {[%emt 00:00:05] [%clk 00:03:00]} 8. Nbd2 {[%emt 00:00:05] [%clk
00:02:16]} Nc6 {[%emt 00:00:13] [%clk 00:02:48]} 9. h3 {[%emt 00:00:06] [%clk
00:02:12]} Qa5 {[%emt 00:00:16] [%clk 00:02:34]} 10. g4 {[%emt 00:00:10] [%clk
00:02:04]} Bc8 {[%emt 00:00:01] [%clk 00:02:35]} 11. Bg2 {[%emt 00:00:09] [%clk
00:01:57]} d4 {[%emt 00:00:20] [%clk 00:02:16]} 12. e4 {[%emt 00:00:30] [%clk
00:01:29]} b5 {[%emt 00:00:17] [%clk 00:02:02]} 13. O-O {[%emt 00:00:04] [%clk
00:01:26]} Bb7 {[%emt 00:00:17] [%clk 00:01:48]} 14. a4 {[%emt 00:00:09] [%clk
00:01:19]} bxa4 {[%emt 00:00:05] [%clk 00:01:44]} 15. Rxa4 {[%emt 00:00:01]
[%clk 00:01:20]} Qc7 {[%emt 00:00:02] [%clk 00:01:45]} 16. Nh2 {[%emt 00:00:30]
[%clk 00:00:51]} Nb4 {[%emt 00:00:07] [%clk 00:01:40]} 17. Nc4 {[%emt 00:00:02]
[%clk 00:00:51]} a5 {[%emt 00:00:31] [%clk 00:01:10]} 18. g5 {[%emt 00:00:20]
[%clk 00:00:33]} Nh5 {[%emt 00:00:12] [%clk 00:01:01]} 19. Bc1 {[%emt 00:00:14]
[%clk 00:00:21]} Ng3 {[%emt 00:00:03] [%clk 00:01:00]} 20. Qf2 {[%emt 00:00:03]
[%clk 00:00:19]} Nxf1 {[%emt 00:00:02] [%clk 00:01:01]} 21. Bxf1 {[%emt
00:00:06] [%clk 00:00:15]} Bc6 {[%emt 00:00:01] [%clk 00:01:02]} 22. Ra3 {[%emt
00:00:08] [%clk 00:00:09]} a4 {[%clk 00:01:03]} 23. Ng4 {[%emt 00:00:03] [%clk
00:00:08]} axb3 {[%emt 00:00:02] [%clk 00:01:03]} 24. cxb3 {[%emt 00:00:03]
[%clk 00:00:07]} f5 {[%emt 00:00:09] [%clk 00:00:55]} 25. gxf6 {[%emt 00:00:01]
[%clk 00:00:08]} exf6 {[%clk 00:00:57]} 26. f5 {[%emt 00:00:01] [%clk 00:00:09]}
Rxa3 {[%emt 00:00:07] [%clk 00:00:52]} 27. Nxa3 {[%emt 00:00:01] [%clk
00:00:10]} Qd7 {[%emt 00:00:10] [%clk 00:00:44]} 28. Nh6+ {[%emt 00:00:06] [%clk
00:00:05]} Bxh6 {[%emt 00:00:12] [%clk 00:00:34]} 29. Bxh6 {[%emt 00:00:01]
[%clk 00:00:06]} Re8 {[%emt 00:00:20] [%clk 00:00:16]} 30. Qg3 {[%emt 00:00:05]
[%clk 00:00:04]} Kh8 {[%emt 00:00:04] [%clk 00:00:12]} 31. Qh4 {[%emt 00:00:03]
[%clk 00:00:03]} g5 {[%emt 00:00:02] [%clk 00:00:12]} 32. Qf2 {[%emt 00:00:03]}
0-1

[Site "Europe Echecs"]

[Event "Championnat d'Europe de Blitz"]
[Date "2024.12.09"]
[White "Mohr, Georg"]
[Black "Aliyev, Elnur"]
[WhiteElo "2385"]
[BlackElo "2079"]
[Round "13.37"]
[Result "1-0"]
[TimeControl "180+2"]

1. d4 {[%emt 00:17:15] [%clk 00:03:04]} Nf6 {[%emt 00:00:01] [%clk 00:03:03]} 2.
Nf3 {[%emt 00:00:02] [%clk 00:03:05]} b6 {[%emt 00:00:02] [%clk 00:03:02]} 3. g3
{[%emt 00:00:09] [%clk 00:02:58]} Bb7 {[%emt 00:00:04] [%clk 00:03:01]} 4. Bg2
{[%clk 00:02:59]} c5 {[%emt 00:00:13] [%clk 00:02:50]} 5. dxc5 {[%emt 00:00:07]
[%clk 00:02:54]} bxc5 {[%emt 00:00:02] [%clk 00:02:51]} 6. O-O {[%emt 00:00:02]
[%clk 00:02:54]} g6 {[%emt 00:00:11] [%clk 00:02:42]} 7. Be3 {[%emt 00:00:29]
[%clk 00:02:26]} d6 {[%emt 00:00:10] [%clk 00:02:35]} 8. Qc1 {[%clk 00:02:27]}
Nbd7 {[%emt 00:00:14] [%clk 00:02:24]} 9. c4 {[%emt 00:00:02] [%clk 00:02:27]}
Rb8 {[%emt 00:00:02] [%clk 00:02:24]} 10. Nc3 {[%emt 00:00:02] [%clk 00:02:27]}
Ne4 {[%emt 00:00:20] [%clk 00:02:05]} 11. Nxe4 {[%emt 00:00:44] [%clk 00:01:45]}
Bxe4 {[%emt 00:00:01] [%clk 00:02:06]} 12. Bh6 {[%clk 00:01:45]} Qb6 {[%emt
00:00:10] [%clk 00:02:00]} 13. b3 {[%clk 00:01:45]} Nf6 {[%emt 00:00:24] [%clk
00:01:41]} 14. Bxf8 {[%emt 00:00:03] [%clk 00:01:43]} Kxf8 {[%emt 00:00:11]
[%clk 00:01:32]} 15. Qh6+ {[%emt 00:00:04] [%clk 00:01:41]} Kg8 {[%emt 00:00:02]
[%clk 00:01:32]} 16. Qe3 {[%emt 00:00:12] [%clk 00:01:32]} Qb7 {[%emt 00:00:12]
[%clk 00:01:22]} 17. Rfe1 {[%emt 00:00:16] [%clk 00:01:17]} Kg7 {[%emt 00:00:02]
[%clk 00:01:23]} 18. Bh3 {[%emt 00:00:02] [%clk 00:01:17]} Bxf3 {[%emt 00:00:12]
[%clk 00:01:13]} 19. exf3 {[%emt 00:00:02] [%clk 00:01:16]} Rhe8 {[%emt
00:00:02] [%clk 00:01:13]} 20. f4 {[%emt 00:00:02] [%clk 00:01:16]} a5 {[%emt
00:00:03] [%clk 00:01:12]} 21. Bg2 {[%emt 00:00:07] [%clk 00:01:10]} Qb4 {[%emt
00:00:01] [%clk 00:01:13]} 22. f5 {[%emt 00:00:08] [%clk 00:01:04]} a4 {[%emt
00:00:03] [%clk 00:01:13]} 23. Rab1 {[%clk 00:01:05]} axb3 {[%emt 00:00:04]
[%clk 00:01:12]} 24. axb3 {[%emt 00:00:04] [%clk 00:01:02]} Rb6 {[%emt 00:00:23]
[%clk 00:00:51]} 25. fxg6 {[%emt 00:00:08] [%clk 00:00:56]} hxg6 {[%emt
00:00:01] [%clk 00:00:52]} 26. Bf3 {[%emt 00:00:01] [%clk 00:00:56]} Ra6 {[%emt
00:00:06] [%clk 00:00:47]} 27. h4 {[%emt 00:00:02] [%clk 00:00:56]} e5 {[%emt
00:00:21] [%clk 00:00:29]} 28. Kg2 {[%emt 00:00:12]} Ra3 {[%clk 00:00:26]} 29.
h5 {[%emt 00:00:19] [%clk 00:00:34]} Rh8 {[%emt 00:00:09] [%clk 00:00:19]} 30.
hxg6 {[%emt 00:00:02] [%clk 00:00:33]} fxg6 {[%emt 00:00:04] [%clk 00:00:18]}
31. Qd3 {[%emt 00:00:04] [%clk 00:00:31]} Qb6 {[%emt 00:00:10] [%clk 00:00:09]}
32. Be4 {[%emt 00:00:07] [%clk 00:00:26]} Nxe4 {[%emt 00:00:04] [%clk 00:00:07]}
33. Rxe4 {[%clk 00:00:27]} Rh6 {[%emt 00:00:05] [%clk 00:00:04]} 34. Re2 {[%emt
00:00:05] [%clk 00:00:25]} Ra8 {[%emt 00:00:02] [%clk 00:00:04]} 35. Rg1 {[%emt
00:00:13] [%clk 00:00:14]} Qc6+ {[%emt 00:00:02] [%clk 00:00:04]} 1-0

[Site "Europe Echecs"]